bitfinex/quotes_ETHUSD_20240630
["timestamp","ask_amount","ask_price","bid_price","bid_amount"]
[1719716842623,0.58588271,3369.0,3368.9,0.622]
[1719716845410,0.58586964,3369.0,3368.9,0.622]
[1719716845858,0.07154666,3369.0,3368.9,0.622]
[1719716846022,0.51435666,3369.0,3368.9,0.622]
[1719716846226,0.07164643,3369.0,3368.9,0.622]
[1719716846526,0.58600309,3369.0,3368.9,0.622]
[1719716847687,0.58600309,3369.0,3368.4,0.148]
[1719716847688,1.97122497,3369.0,3368.5,0.622]
[1719716847834,0.866,3368.8,3368.5,0.622]
[1719716848033,0.51435666,3368.7,3368.5,0.622]
[1719716848255,0.58603682,3368.7,3368.5,0.622]
[1719716848455,0.51441515,3368.6,3368.5,0.622]
[1719716848737,0.58607737,3368.6,3368.5,0.622]
[1719716851439,0.07166222,3368.6,3368.5,0.622]
[1719716851641,0.51442003,3368.7,3368.5,0.622]
[1719716851937,0.07168037,3368.6,3368.5,0.622]
[1719716852136,0.5861004,3368.6,3368.5,0.622]
[1719716852337,0.5861004,3368.6,3368.4,0.148]
[1719716852584,2.99462003,3368.5,3368.4,0.148]
[1719716852963,3.06617109,3368.5,3368.4,0.148]
[1719716853164,3.4593882,3368.5,3368.4,0.148]
[1719716854874,0.07155106,3368.5,3368.4,0.148]
[1719716855082,0.866,3368.8,3368.4,0.148]
[1719716855257,0.07150417,3368.5,3368.4,3.148]
[1719716855435,0.51443454,3368.5,3368.4,3.148]
[1719716855637,0.58593871,3368.5,3368.4,3.148]
[1719716856452,0.51443454,3368.5,3368.4,4.3126]
[1719716856641,0.5859592,3368.5,3368.4,4.3126]
[1719716856844,0.58585986,3368.5,3368.4,4.3126]
[1719716857353,0.07152466,3368.5,3368.4,4.3126]
[1719716857789,0.51438223,3368.5,3368.4,4.3126]
[1719716858143,0.07152097,3368.5,3368.4,4.3126]
[1719716858461,0.51435228,3368.5,3368.4,4.3126]
[1719716858656,0.07152097,3368.5,3368.4,4.3126]
[1719716858858,4.20166398,3369.1,3368.4,4.3126]
[1719716859058,0.07152097,3368.5,3368.4,4.3126]
[1719716859288,4.20166398,3369.1,3368.4,3.698]
[1719716859491,0.07152097,3368.5,3368.4,3.698]
[1719716859654,0.51433446,3368.5,3368.4,3.698]
[1719716859863,0.07152097,3368.5,3368.4,3.698]
[1719716860088,4.20166398,3369.1,3368.7,0.622]
[1719716860294,0.51433418,3369.0,3368.7,0.622]
[1719716860462,4.20166398,3369.1,3368.7,0.622]
[1719716860463,0.51433418,3368.9,3368.7,0.622]
[1719716860661,0.51433418,3368.8,3368.7,0.622]
[1719716860869,4.20166398,3369.1,3368.7,0.622]
[1719716861191,0.51433434,3368.8,3368.7,0.622]
[1719716861402,4.20166398,3369.1,3368.9,0.622]
[1719716861546,0.51432178,3369.0,3368.9,3.622]
[1719716862198,4.20166398,3369.1,3368.9,3.622]
[1719716862352,4.20166398,3369.1,3368.9,4.35611]
[1719716862889,3.3462,3369.5,3368.9,4.35611]
[1719716863192,1.42090248,3369.4,3368.9,4.35611]
[1719716863978,0.866,3369.4,3369.1,0.622]
[1719716866062,1.42088115,3369.5,3369.1,0.622]
[1719716866596,2.28688115,3369.5,3369.1,0.622]
[1719716867371,1.42087185,3369.4,3369.1,0.622]
[1719716867575,0.866,3369.5,3369.1,0.622]
[1719716867897,2.28687176,3369.5,3369.1,0.622]
[1719716869087,0.07171595,3369.4,3369.1,0.622]
[1719716871004,1.49265758,3369.4,3369.1,0.622]
[1719716871186,0.07171595,3369.4,3369.1,0.622]
[1719716882603,0.866,3369.3,3368.9,0.622]
[1719716882975,0.07158936,3369.2,3368.9,0.622]
[1719716883370,2.28684302,3369.3,3368.9,0.622]
[1719716883607,0.07155969,3369.1,3368.9,0.622]
[1719716883807,2.28684302,3369.3,3368.9,0.622]
[1719716884017,0.07154175,3369.0,3368.9,0.622]
[1719716884524,2.28614483,3369.3,3368.9,0.622]
[1719716884684,0.07154175,3369.0,3368.9,0.622]
[1719716884890,2.28614483,3369.3,3368.9,0.622]
[1719716885092,0.07154175,3369.0,3368.9,0.622]
[1719716885297,1.42014483,3369.3,3368.9,0.622]
[1719716885494,0.07154175,3369.0,3368.9,0.622]
[1719716885674,1.42022741,3369.3,3368.9,0.622]
[1719716885875,0.07154175,3369.0,3368.9,0.622]
[1719716886102,1.42022741,3369.3,3368.9,0.622]
[1719716886376,0.07154175,3369.0,3368.9,0.622]
[1719716886601,1.42022741,3369.3,3368.9,0.622]
[1719716886809,0.07154175,3369.0,3368.9,0.622]
[1719716887324,1.42022741,3369.3,3368.9,0.622]
[1719716887476,0.07154175,3369.0,3368.9,0.622]
[1719716887811,1.42022741,3369.3,3368.9,0.622]
[1719716888018,0.07154175,3369.0,3368.9,0.622]
[1719716888197,1.42022741,3369.3,3368.9,0.622]
[1719716888384,0.07154175,3369.0,3368.9,0.622]
[1719716888929,1.42071685,3369.3,3368.9,0.622]
[1719716889134,0.07154175,3369.0,3368.9,0.622]
[1719716889296,2.28671685,3369.3,3368.9,0.622]
[1719716889506,0.07154175,3369.0,3368.9,0.622]
[1719716889690,2.28671685,3369.3,3368.9,0.622]
[1719716889890,0.07154175,3369.0,3368.9,0.622]
[1719716890153,2.28671685,3369.3,3368.9,0.622]
[1719716890304,0.07154175,3369.0,3368.9,0.622]
[1719716890515,2.28671685,3369.3,3368.9,0.622]
[1719716890704,0.07154175,3369.0,3368.9,0.622]
[1719716890889,1.42071685,3369.3,3368.9,0.622]
[1719716891102,0.07154175,3369.0,3368.9,0.622]
[1719716891298,1.42071685,3369.3,3368.9,0.622]
[1719716891505,0.07154175,3369.0,3368.9,0.622]
[1719716891728,3.2159,3369.4,3368.9,0.622]
[1719716892029,0.07154175,3369.0,3368.9,0.622]
[1719716892436,1.42074549,3369.3,3368.9,0.622]
[1719716893307,0.07157763,3369.2,3368.9,0.622]
[1719716893512,1.42074549,3369.3,3368.9,0.622]
[1719716894130,0.07152315,3369.2,3368.9,0.622]
[1719716894317,1.42074549,3369.3,3368.9,0.622]
[1719716894498,0.07156552,3369.2,3368.9,0.622]
[1719716894831,1.42074549,3369.3,3368.9,0.622]
[1719716895062,3.2159,3369.4,3368.9,0.622]
[1719716895232,0.07156552,3369.2,3368.9,0.622]
[1719716895550,1.4203961,3369.3,3368.9,0.622]
[1719716895551,1.42040632,3369.3,3368.9,0.622]
[1719716896047,0.07157157,3369.2,3368.9,0.622]
[1719716896213,1.42040632,3369.3,3368.9,0.622]
[1719716896436,0.07157763,3369.2,3368.9,0.622]
[1719716896742,0.866,3369.4,3368.9,0.622]
[1719716896951,0.07155969,3369.1,3368.9,0.622]
[1719716897135,0.866,3369.4,3368.9,0.622]
[1719716897315,1.42039929,3369.5,3369.1,0.622]
[1719716897645,1.42039929,3369.5,3369.2,2.3661]
[1719716898021,3.816,3369.6,3369.2,3.0]
[1719716898352,3.816,3369.6,3369.1,3.622]
[1719716898518,1.42040868,3369.5,3369.2,0.622]
[1719716898727,0.866,3369.4,3369.2,0.622]
[1719716899106,0.0715809,3369.3,3369.2,0.622]
[1719716907952,0.0715809,3369.3,3369.1,3.0]
[1719716908132,0.866,3369.2,3368.9,0.622]
[1719716908452,0.93756425,3369.2,3368.9,0.622]
[1719716908654,2.35844708,3369.2,3368.9,0.622]
[1719716909442,1.49244708,3369.2,3368.9,0.622]
[1719716909669,1.42088283,3369.1,3368.9,3.622]
[1719716909831,0.07160877,3369.1,3368.9,3.622]
[1719716910027,1.42035025,3369.5,3368.9,4.22434]
[1719716910257,0.07165871,3369.4,3369.1,0.622]
[1719716912961,0.93765871,3369.4,3369.1,0.622]
[1719716919190,0.866,3369.2,3368.9,3.622]
[1719716919380,0.866,3369.2,3368.9,0.622]
[1719716919583,0.0711024,3369.1,3369.0,3.0]
[1719716919768,0.0711024,3369.1,3368.9,0.622]
[1719716928342,0.07109438,3369.0,3368.9,0.622]
[1719716928500,3.04968568,3369.4,3368.9,0.622]
[1719716928700,0.07109438,3369.0,3368.9,0.622]
[1719716928902,1.41990516,3369.3,3368.9,0.622]
[1719716929235,0.07109438,3369.0,3368.9,0.622]
[1719716929449,1.41990516,3369.1,3368.9,0.622]
[1719716929594,1.49099954,3369.0,3368.9,3.52874]
[1719716929947,0.07109438,3369.0,3368.9,5.9264]
[1719716930108,1.42015916,3369.5,3368.9,5.9264]
[1719716930333,1.42015916,3369.5,3369.0,3.59264]
[1719716930535,1.42015916,3369.5,3369.0,3.0]
[1719716932458,1.42015916,3369.5,3369.1,0.622]
[1719716932958,1.42072648,3369.4,3369.1,0.622]
[1719716933261,2.95,3369.6,3369.1,0.622]
[1719716933470,1.42070879,3369.5,3369.1,0.622]
[1719716935547,2.95,3369.6,3369.1,0.622]
[1719716935750,1.42076839,3369.5,3369.1,0.622]
[1719716935946,1.42076776,3369.4,3369.1,0.622]
[1719716936151,1.42076776,3369.3,3369.1,0.622]
[1719716936462,2.95,3369.6,3369.1,0.622]
[1719716936853,1.42077031,3369.5,3369.1,0.622]
[1719716938239,1.42077031,3369.5,3369.3,0.622]
[1719716938472,1.42077031,3369.5,3369.3,3.622]
[1719716939141,3.816,3369.6,3369.3,3.622]
[1719716939382,1.42077977,3369.5,3369.3,3.622]
[1719716941585,3.816,3369.6,3369.3,3.622]
[1719716941770,1.42082577,3369.5,3369.3,3.622]
[1719716941967,3.2587,3369.4,3369.1,3.0]
[1719716942176,1.42094765,3369.3,3368.8,3.0]
[1719716942478,1.41294765,3369.3,3368.9,0.622]
[1719716944250,0.06975597,3369.2,3368.9,0.622]
[1719716944646,3.2587,3369.4,3368.9,0.622]
[1719716944873,0.06974408,3369.1,3368.9,0.622]
[1719716945085,3.2587,3369.4,3368.9,0.622]
[1719716945239,0.06972615,3369.0,3368.9,0.622]
[1719716945585,3.2587,3369.4,3368.9,0.622]
[1719716945788,0.06972615,3369.0,3368.9,0.622]
[1719716946091,3.2587,3369.4,3368.9,0.622]
[1719716946465,0.06972615,3369.0,3368.9,0.622]
[1719716946664,3.2587,3369.4,3368.9,0.622]
[1719716947060,0.866,3369.4,3368.9,0.622]
[1719716947369,0.06977995,3369.3,3369.1,0.622]
[1719716947550,0.06977995,3369.3,3369.1,2.9223]
[1719716947931,3.816,3369.6,3369.2,3.0]
[1719716950387,2.95,3369.6,3369.3,0.622]
[1719716957300,1.41727281,3369.5,3369.3,0.622]
[1719716957499,2.95,3369.6,3369.3,0.622]
[1719716957726,1.41724088,3369.5,3369.3,0.622]
[1719716957873,4.20166398,3369.9,3369.8,0.622]
[1719716959211,4.26688769,3369.9,3369.8,0.622]
[1719716961429,0.06522371,3369.9,3369.8,0.622]
[1719716961778,2.28273777,3370.1,3369.8,0.622]
[1719716962080,0.06527795,3369.9,3369.8,0.622]
[1719716962281,2.28273777,3370.1,3369.8,0.622]
[1719716962789,0.06528596,3370.0,3369.8,0.622]
[1719716963409,0.06528596,3370.0,3369.9,2.4685]
[1719716963618,0.06528596,3370.0,3369.9,6.64355]
[1719716963988,4.20166398,3370.5,3369.9,6.64355]
[1719716964336,0.06522546,3370.4,3369.9,6.3345]
[1719716967130,0.06522546,3370.4,3369.9,5.4685]
[1719716967288,2.34821457,3370.4,3369.9,3.0]
[1719716967487,0.94998786,3370.3,3369.8,3.0]
[1719716967729,0.866,3370.2,3369.8,3.0]
[1719716967927,0.93124069,3370.2,3369.8,3.0]
[1719716969529,0.06524069,3370.2,3369.8,3.0]
[1719716969917,2.28288996,3370.4,3369.8,3.0]
[1719716970115,0.06524697,3370.1,3369.8,3.0]
[1719716970317,0.866,3370.4,3369.8,3.0]
[1719716970629,0.866,3370.4,3369.7,0.622]
[1719716970630,3.1438,3370.0,3369.5,0.622]
[1719716971339,0.06527876,3369.9,3369.5,0.622]
[1719716972181,0.06527876,3369.9,3369.3,3.622]
[1719716972380,1.80292511,3369.9,3369.1,0.622]
[1719716972646,0.866,3369.4,3368.9,0.622]
[1719716973002,0.065152,3369.3,3368.9,0.622]
[1719716974694,2.2778,3369.5,3368.9,0.622]
[1719716974906,0.06514617,3369.2,3368.9,0.622]
[1719716975225,0.06512824,3369.1,3368.9,0.622]
[1719716975438,2.2778,3369.5,3368.9,1.29631]
[1719716975604,0.06511031,3369.0,3368.9,0.622]
[1719716975803,2.2778,3369.5,3368.9,0.622]
[1719716976011,0.06518203,3369.4,3368.9,0.622]
[1719716979918,0.06518203,3369.4,3368.9,2.8771]
[1719716980113,0.06518203,3369.4,3369.0,3.0]
[1719716981049,0.06518203,3369.4,3368.9,0.622]
[1719716983837,0.06518203,3369.4,3368.9,1.31375]
[1719716984019,4.20166398,3369.7,3368.9,1.31375]
[1719716984220,0.06506983,3369.6,3368.9,1.31375]
[1719716984842,0.06506983,3369.6,3368.9,0.622]
[1719716985254,0.93106983,3369.6,3368.9,0.622]
[1719716987861,2.421,3369.5,3368.9,0.622]
[1719716988233,0.06504566,3369.4,3368.9,0.622]
[1719716996277,0.866,3369.6,3368.9,0.622]
[1719716996492,0.06516376,3369.3,3369.0,0.69175]
[1719716996710,0.866,3369.6,3369.0,0.69175]
[1719716996841,0.06514583,3369.2,3369.0,0.69175]
[1719716997042,0.866,3369.6,3369.0,0.69175]
[1719716997244,0.06519962,3369.5,3369.0,0.69175]
[1719716998372,0.06519962,3369.5,3369.1,0.431375]
[1719717000382,0.06519962,3369.5,3369.0,0.69175]
[1719717000552,0.06519962,3369.5,3368.9,0.622]
[1719717002082,0.06519962,3369.5,3369.2,0.622]
[1719717002594,4.20166398,3369.7,3369.2,3.622]
[1719717002882,0.06520076,3369.4,3369.2,3.622]
[1719717003191,2.463,3369.9,3369.3,0.6883]
[1719717004046,0.06527247,3369.8,3369.3,0.6883]
[1719717004246,0.06527247,3369.8,3369.2,3.622]
[1719717007991,0.06527247,3369.8,3369.4,0.622]
[1719717009305,0.06527247,3369.8,3369.6,0.622]
[1719717009503,0.06527247,3369.8,3369.6,0.77673575]
[1719717009800,4.20166398,3370.0,3369.6,0.77673575]
[1719717010373,0.06532262,3369.9,3369.6,0.77673575]
[1719717011274,0.06532262,3369.9,3369.8,0.622]
[1719717011473,16.50166398,3370.4,3369.8,0.622]
[1719717011708,1.48224472,3370.3,3369.8,0.622]
[1719717013417,1.48224472,3370.3,3369.6,3.622]
[1719717013602,4.71821782,3370.2,3369.3,0.622]
[1719717013771,1.48215326,3370.1,3369.6,0.622]
[1719717015913,2.4353,3370.0,3369.4,0.622]
[1719717016095,2.91364533,3370.0,3369.4,0.622]
[1719717016296,0.06522341,3369.9,3369.4,0.622]
[1719717017843,0.06522341,3369.9,3369.6,0.622]
[1719717019438,1.41680035,3370.2,3369.6,3.622]
[1719717019943,0.06530988,3370.1,3369.6,3.622]
[1719717020419,1.41682379,3370.2,3369.6,3.622]
[1719717020598,0.06533408,3370.1,3369.6,3.622]
[1719717021034,0.06533408,3370.1,3369.9,0.622]
[1719717021463,2.4353,3370.3,3369.9,0.622]
[1719717021665,0.06526713,3370.2,3369.9,0.622]
[1719717021880,2.4353,3370.3,3369.9,0.622]
[1719717022176,0.06526713,3370.2,3369.9,0.622]
[1719717022531,2.4353,3370.3,3369.9,0.622]
[1719717022738,0.06524921,3370.1,3369.9,0.622]
[1719717022975,2.4353,3370.3,3369.9,0.622]
[1719717023433,0.06526713,3370.2,3369.9,0.622]
[1719717023776,2.4353,3370.3,3369.9,0.622]
[1719717024260,0.06526713,3370.2,3369.9,0.622]
[1719717024568,2.4353,3370.3,3369.9,0.622]
[1719717024771,0.06524921,3370.1,3369.9,0.622]
[1719717025078,0.06523128,3370.0,3369.9,0.622]
[1719717025246,2.4353,3370.3,3369.9,0.622]
[1719717025445,0.06526713,3370.2,3369.9,0.622]
[1719717025646,2.4353,3370.3,3369.9,0.622]
[1719717025859,0.06518848,3370.2,3369.9,0.622]
[1719717026067,2.4353,3370.3,3369.9,0.622]
[1719717026277,0.06519453,3370.2,3369.9,0.622]
[1719717026440,2.4353,3370.3,3369.9,0.622]
[1719717026774,0.06519453,3370.2,3369.9,0.622]
[1719717026930,0.06519453,3370.2,3369.6,3.622]
[1719717026931,0.40184398,3370.2,3369.6,3.622]
[1719717027278,0.06522501,3370.1,3369.6,0.622]
[1719717027762,0.06522501,3370.1,3370.0,0.622]
[1719717028079,2.4442,3370.4,3370.0,0.622]
[1719717028232,0.06532593,3370.3,3370.0,0.622]
[1719717031683,0.09599289,3370.3,3370.0,0.622]
[1719717032984,2.28255393,3370.5,3370.0,0.622]
[1719717033184,0.09599584,3370.2,3370.0,0.622]
[1719717033382,5.2687,3370.6,3370.0,0.622]
[1719717033542,0.09607315,3370.1,3370.0,0.622]
[1719717033742,5.2687,3370.6,3370.0,1.31418]
[1719717033941,0.09607315,3370.1,3370.0,0.622]
[1719717034178,5.2687,3370.6,3370.0,0.622]
[1719717034381,0.09607315,3370.1,3370.0,0.622]
[1719717034690,0.09607315,3370.1,3370.0,1.31418]
[1719717034894,5.2687,3370.6,3370.0,1.31418]
[1719717035098,0.09614119,3370.5,3370.0,0.622]
[1719717037800,0.09614119,3370.5,3370.3,0.622]
[1719717041530,0.09614119,3370.5,3370.2,3.0]
[1719717041867,0.09614119,3370.5,3370.1,0.622]
[1719717046516,0.09614119,3370.5,3370.1,0.9842]
[1719717046750,0.09614119,3370.5,3370.1,3.2724]
[1719717046905,0.09614119,3370.5,3370.2,3.0]
[1719717049247,0.09614119,3370.5,3370.3,0.622]
[1719717055854,0.09614119,3370.5,3370.3,0.68133815]
[1719717056039,0.09614119,3370.5,3370.4,3.64515381]
[1719717056244,1.41638802,3370.9,3370.4,3.1542]
[1719717056471,0.09549721,3370.8,3370.5,3.0]
[1719717056781,1.41639642,3370.9,3370.7,0.622]
[1719717056986,4.20166398,3371.0,3370.7,0.622]
[1719717059781,23.0054,3371.3,3370.7,0.622]
[1719717060076,1.41635037,3371.2,3370.7,0.622]
[1719717060732,23.0054,3371.3,3370.7,0.622]
[1719717060733,1.41634478,3371.1,3370.7,0.622]
[1719717060933,1.41634478,3371.0,3370.7,0.622]
[1719717061134,23.0054,3371.3,3370.7,0.622]
[1719717061369,1.41634519,3371.2,3370.7,0.622]
[1719717063496,1.41634061,3371.1,3370.7,0.622]
[1719717063679,1.41634061,3371.0,3370.7,0.622]
[1719717063864,23.0054,3371.3,3370.7,0.622]
[1719717064066,1.51195244,3371.2,3370.7,0.622]
[1719717064564,1.41634638,3371.1,3370.7,0.622]
[1719717064778,1.41634638,3371.0,3370.7,0.622]
[1719717065088,0.0956001,3371.0,3370.7,0.622]
[1719717065262,1.41634129,3371.2,3370.7,0.622]
[1719717065451,0.09565727,3371.1,3370.7,0.622]
[1719717066957,1.41633923,3371.2,3370.7,0.622]
[1719717067170,0.09569089,3371.0,3370.7,0.622]
[1719717067465,0.09551893,3370.9,3370.7,0.622]
[1719717067683,1.41633923,3371.2,3370.7,0.622]
[1719717067881,0.09555293,3371.1,3370.7,0.622]
[1719717071270,0.866,3370.8,3370.5,3.622]
[1719717071462,0.09564847,3370.7,3370.6,3.0]
[1719717071775,0.09564847,3370.7,3370.5,0.622]
[1719717073061,1.51218993,3370.7,3370.5,0.622]
[1719717073268,0.09564847,3370.7,3370.5,0.622]
[1719717073877,0.09564847,3370.7,3370.6,2.4753]
[1719717074084,6.58526398,3371.5,3370.6,5.78503]
[1719717074085,7.45126398,3371.5,3370.6,5.78503]
[1719717074287,1.51216801,3371.4,3370.6,5.78503]
[1719717074605,1.51216801,3371.4,3370.6,5.4753]
[1719717075867,1.51216801,3371.4,3370.7,0.622]
[1719717076070,1.51216801,3371.4,3370.7,3.622]
[1719717076071,1.41623162,3371.3,3370.7,3.622]
[1719717076270,1.5120322,3371.2,3370.7,3.622]
[1719717076565,1.41623162,3371.1,3370.7,3.622]
[1719717076794,1.41623162,3371.0,3370.7,3.622]
[1719717076997,0.09576659,3371.0,3370.7,3.622]
[1719717077307,0.866,3371.3,3370.7,3.622]
[1719717077509,0.0956973,3371.2,3370.7,3.622]
[1719717078090,1.41627833,3371.4,3370.7,3.622]
[1719717078300,0.09570856,3371.3,3370.7,3.622]
[1719717079379,0.09570856,3371.3,3370.7,4.31833]
[1719717079767,0.09570856,3371.3,3370.9,1.488]
[1719717080001,0.09570856,3371.3,3371.0,2.4753]
[1719717080206,0.09570856,3371.3,3371.0,5.4753]
[1719717081616,0.09570856,3371.3,3371.0,3.0]
[1719717081794,0.09570856,3371.3,3370.9,0.622]
[1719717082608,0.09570856,3371.3,3370.9,1.384413]
[1719717082813,5.06766398,3371.5,3370.9,1.384413]
[1719717083019,0.09580577,3371.2,3370.9,0.622]
[1719717083312,0.09579757,3371.1,3370.9,0.622]
[1719717083509,1.41609616,3371.3,3370.9,0.622]
[1719717083732,0.09581457,3371.2,3370.9,0.622]
[1719717083886,1.41609616,3371.3,3370.9,0.622]
[1719717084074,0.09581457,3371.2,3370.9,0.622]
[1719717084275,1.41609616,3371.3,3370.9,0.622]
[1719717084504,0.09581457,3371.2,3370.9,0.622]
[1719717084686,1.41609616,3371.3,3370.9,0.622]
[1719717084885,0.09581457,3371.2,3370.9,0.622]
[1719717085088,1.41609616,3371.3,3370.9,0.622]
[1719717085267,0.09581457,3371.2,3370.9,0.622]
[1719717085473,2.444,3371.4,3370.9,0.622]
[1719717085673,1.51198664,3371.3,3370.9,0.622]
[1719717086121,1.51198664,3371.3,3370.8,3.0]
[1719717086302,3.29201346,3371.3,3370.6,0.622]
[1719717086501,1.41615507,3371.2,3370.6,0.622]
[1719717086685,0.0957873,3371.1,3370.6,0.622]
[1719717087570,1.51194237,3371.1,3370.6,0.622]
[1719717087894,0.0957873,3371.1,3370.6,1.22818]
[1719717088212,1.41627504,3371.3,3370.6,1.22818]
[1719717088449,0.0957703,3371.0,3370.7,2.4398]
[1719717088589,5.06766398,3371.5,3370.7,5.4398]
[1719717088778,0.0957533,3370.9,3370.7,5.4398]
[1719717089115,1.41613685,3371.4,3371.0,0.622]
[1719717089410,0.1166176,3371.6,3371.0,0.622]
[1719717089612,1.5326062,3371.6,3371.0,0.622]
[1719717089916,1.4159886,3371.5,3371.0,0.622]
[1719717090078,0.1166176,3371.6,3371.0,0.622]
[1719717092744,0.1166176,3371.6,3371.1,2.4398]
[1719717093043,0.1166176,3371.6,3371.1,5.4398]
[1719717094041,0.1166176,3371.6,3371.1,3.0]
[1719717094249,0.96183628,3371.5,3371.0,3.622]
[1719717094835,2.444,3371.4,3371.0,3.622]
[1719717095049,2.93784412,3371.4,3371.1,3.0]
[1719717095209,1.51199665,3371.3,3370.8,3.0]
[1719717095425,0.866,3371.0,3370.8,3.0]
[1719717095622,2.444,3370.9,3370.2,0.622]
[1719717095980,0.866,3370.6,3370.2,0.622]
[1719717096421,0.09571322,3370.5,3370.2,0.622]
[1719717099409,2.28258562,3370.8,3370.2,0.622]
[1719717099642,0.09554429,3370.4,3370.2,0.622]
[1719717099859,2.28258562,3370.8,3370.2,1.22818]
[1719717100053,0.09557039,3370.3,3370.2,0.622]
[1719717100254,0.866,3371.0,3370.2,0.622]
[1719717100436,1.6171664,3371.0,3370.2,0.622]
[1719717100621,1.41654246,3370.9,3370.2,0.622]
[1719717100824,1.41654246,3370.8,3370.2,0.622]
[1719717101065,1.41654045,3370.7,3370.2,0.622]
[1719717101262,0.09562538,3370.7,3370.2,0.622]
[1719717101667,0.09562538,3370.7,3370.4,0.622]
[1719717101877,0.866,3370.6,3370.2,0.622]
[1719717102166,0.42467656,3370.5,3370.2,0.622]
[1719717102542,0.866,3370.4,3369.8,3.0]
[1719717102736,0.42467656,3370.5,3369.7,5.4952]
[1719717102737,0.866,3370.2,3369.7,5.4952]
[1719717102972,0.09554165,3370.1,3369.8,3.0]
[1719717103501,0.09554165,3370.1,3369.7,5.4952]
[1719717103762,0.09554165,3370.1,3369.7,6.1172]
[1719717103991,0.09554165,3370.1,3369.7,3.0]
[1719717104168,0.09554165,3370.1,3369.6,0.622]
[1719717104333,0.09554165,3370.1,3369.5,3.0]
[1719717104531,0.09554165,3370.1,3369.4,2.4952]
[1719717104532,0.09554165,3370.1,3369.7,0.622]
[1719717104841,0.09554165,3370.1,3369.6,0.622]
[1719717105666,0.09554165,3370.1,3369.7,0.622]
[1719717105840,0.09554165,3370.1,3369.9,0.622]
[1719717106248,0.866,3370.4,3369.9,0.622]
[1719717106445,0.095525,3370.0,3369.9,0.622]
[1719717106647,0.866,3370.4,3369.9,0.622]
[1719717106968,0.866,3370.4,3369.8,0.622]
[1719717107479,0.866,3370.4,3369.6,0.622]
[1719717107480,0.09558176,3370.3,3369.6,0.622]
[1719717107633,0.09558176,3370.3,3369.8,0.622]
[1719717108332,0.09558176,3370.3,3370.0,0.622]
[1719717108761,4.20166398,3370.6,3370.0,3.622]
[1719717108961,0.09550296,3370.5,3370.0,3.622]
[1719717110249,0.09550296,3370.5,3370.2,0.622]
[1719717113594,15.4954,3370.9,3370.2,0.622]
[1719717113794,0.09558976,3370.8,3370.2,0.622]
[1719717115609,0.09558976,3370.8,3370.0,3.0]
[1719717115610,0.09558976,3370.8,3370.4,0.622]
[1719717115814,0.09558976,3370.8,3370.4,0.77673429]
[1719717116094,0.09558976,3370.8,3370.6,0.622]
[1719717116297,4.20166398,3371.0,3370.6,0.622]
[1719717116889,0.09560662,3370.9,3370.6,0.622]
[1719717119652,3.1954,3371.1,3370.6,0.622]
[1719717119854,0.09558962,3370.8,3370.6,0.622]
[1719717120100,3.1954,3371.1,3370.6,0.622]
[1719717120550,0.09561789,3371.0,3370.6,0.622]
[1719717121180,0.866,3370.8,3370.6,0.622]
[1719717121400,0.09556114,3370.7,3370.6,0.622]
[1719717121729,0.09556114,3370.7,3370.2,3.0]
[1719717121937,3.3522,3370.6,3370.1,0.622]
[1719717122083,0.866,3370.7,3370.1,0.622]
[1719717122287,0.09556372,3370.5,3370.1,0.622]
[1719717122483,0.866,3370.7,3370.1,0.622]
[1719717122484,0.866,3370.7,3370.2,2.4681]
[1719717122807,0.09558073,3370.6,3370.2,5.4681]
[1719717124326,0.09558073,3370.6,3370.5,0.622]
[1719717124732,0.866,3370.8,3370.5,0.622]
[1719717124932,0.09562458,3370.6,3370.5,0.622]
[1719717125086,0.866,3370.8,3370.5,0.622]
[1719717125623,0.0956588,3370.7,3370.5,0.622]
[1719717128503,0.0956588,3370.7,3370.3,3.622]
[1719717128706,0.0956588,3370.7,3370.3,0.622]
[1719717128922,0.866,3370.8,3370.3,0.622]
[1719717129125,0.33522,3370.7,3370.3,0.622]
[1719717129312,0.43079271,3370.7,3370.3,0.622]
[1719717129510,0.33522,3370.7,3370.3,0.622]
[1719717132542,2.4862,3370.6,3370.3,0.622]
[1719717133040,0.09552722,3370.5,3370.3,0.622]
[1719717141221,0.09552722,3370.5,3370.0,0.622]
[1719717141222,0.866,3370.4,3370.0,0.622]
[1719717141393,0.34477272,3370.3,3370.0,0.622]
[1719717141591,0.866,3370.1,3370.0,0.622]
[1719717141992,0.96157511,3370.1,3370.0,0.622]
[1719717142713,0.09557511,3370.1,3370.0,0.622]
[1719717142910,0.866,3370.3,3370.0,0.622]
[1719717143097,0.09557511,3370.1,3370.0,0.622]
[1719717143297,0.866,3370.3,3370.0,0.622]
[1719717143495,0.09557511,3370.1,3370.0,0.622]
[1719717143722,0.866,3370.3,3370.0,0.622]
[1719717144208,0.09559211,3370.2,3370.0,0.622]
[1719717144394,0.866,3370.3,3370.0,0.622]
[1719717144589,0.09559211,3370.2,3370.0,0.622]
[1719717144795,0.866,3370.3,3370.0,0.622]
[1719717145127,0.09559211,3370.2,3370.0,0.622]
[1719717145319,0.866,3370.3,3370.0,0.622]
[1719717145487,0.09557511,3370.1,3370.0,0.622]
[1719717146220,0.866,3370.3,3370.0,0.622]